bitfinex-derivatives/quotes_ETHF0:USTF0_20250504
["timestamp","ask_amount","ask_price","bid_price","bid_amount"]
[1746396566971,1.0942,1827.6,1827.4,1.5919]
[1746396566972,1.09422,1827.5,1827.4,4.7923]
[1746396567271,1.6067,1827.5,1827.4,4.7923]
[1746396567459,2.70092,1827.5,1827.4,6.3587]
[1746396570765,1.6067,1827.5,1827.4,6.3587]
[1746396570966,2.70092,1827.5,1827.4,6.3587]
[1746396571676,1.09438,1827.3,1827.0,5.08248]
[1746396571867,1.09432,1827.4,1827.1,4.30223]
[1746396572175,1.09434,1827.3,1827.2,1.6958]
[1746396572569,1.36790046,1827.3,1827.2,1.6958]
[1746396574970,1.09434,1827.3,1827.2,1.6958]
[1746396575474,2.78494,1827.3,1827.2,1.6958]
[1746396579180,3.05850046,1827.3,1827.2,1.6958]
[1746396580577,1.96416046,1827.3,1827.0,4.7891]
[1746396580880,2.79012,1827.2,1827.1,1.5638]
[1746396581675,1.09446,1827.1,1827.0,4.7891]
[1746396581875,2.68826,1827.1,1827.0,6.5012]
[1746396582183,1.5938,1827.1,1827.0,6.5012]
[1746396582380,1.5938,1827.1,1827.0,2.5132]
[1746396582676,1.09459,1826.9,1826.7,54.3388]
[1746396582882,1.09467,1826.8,1826.6,4.0206]
[1746396583075,2.96203046,1826.8,1826.6,5.7327]
[1746396583274,2.96203046,1826.8,1826.7,1.7121]
[1746396585383,1.36807046,1827.1,1826.8,1.09461]
[1746396585579,2.96707046,1827.1,1826.9,1.6671]
[1746396585881,1.09452,1827.0,1826.9,1.6671]
[1746396586279,2.69347,1827.1,1826.9,1.6671]
[1746396586486,6.96176046,1827.2,1826.9,1.6671]
[1746396586681,6.96176046,1827.2,1827.0,0.8263]
[1746396586880,1.36803046,1827.1,1827.0,0.8263]
[1746396587080,2.96703046,1827.1,1827.0,0.8263]
[1746396587280,1.87256046,1827.1,1826.8,4.30239]
[1746396587485,0.27356046,1827.1,1826.9,1.09456]
[1746396587681,8.56076046,1827.2,1827.0,4.30232]
[1746396587986,9.65516046,1827.2,1827.1,1.5894]
[1746396588293,3.83116046,1827.2,1827.1,1.5894]
[1746396588586,0.27356046,1827.1,1826.7,3.901]
[1746396588783,7.77186046,1827.1,1826.7,5.4904]
[1746396588983,1.36819046,1826.9,1826.8,1.5894]
[1746396589688,1.09464,1826.8,1826.7,3.901]
[1746396589888,1.36820046,1826.8,1826.7,1.5894]
[1746396590082,1.09476,1826.6,1826.5,1.5894]
[1746396591591,1.09499,1826.3,1826.0,1.6694]
[1746396591885,1.09499,1826.3,1826.1,1.6694]
[1746396592091,0.27356046,1826.5,1826.3,1.09492]
[1746396592294,1.36838046,1826.5,1826.4,1.6694]
[1746396594086,0.27356046,1826.5,1826.4,1.6694]
[1746396594291,1.36838046,1826.5,1826.4,1.6694]
[1746396594483,3.08058046,1826.5,1826.4,1.6694]
[1746396595789,0.27356046,1826.5,1826.4,1.6694]
[1746396596094,0.27356046,1826.5,1826.4,2.76428]
[1746396596705,1.7122,1826.7,1826.5,1.0948]
[1746396596887,1.7122,1826.7,1826.6,1.652]
[1746396597089,2.8069,1826.7,1826.6,1.652]
[1746396599096,3.08046046,1826.7,1826.6,1.652]
[1746396599298,0.27356046,1826.6,1826.4,1.652]
[1746396599499,1.09482,1826.5,1826.4,1.652]
[1746396599699,1.36838046,1826.5,1826.4,1.652]
[1746396599897,1.09488,1826.4,1826.3,0.7928]
[1746396600098,2.69188,1826.4,1826.3,0.7928]
[1746396600299,2.69188,1826.4,1826.3,2.3868]
[1746396601006,1.09497,1826.3,1826.0,4.30288]
[1746396601306,1.095,1826.2,1826.1,1.594]
[1746396601502,2.96555046,1826.3,1826.1,1.594]
[1746396601695,1.36856046,1826.2,1826.1,1.594]
[1746396601898,2.692,1826.2,1826.1,1.594]
[1746396602298,2.96556046,1826.2,1826.1,1.594]
[1746396603407,1.597,1826.2,1826.1,1.594]
[1746396603704,0.27356046,1826.4,1826.3,1.09494]
[1746396603906,1.36845046,1826.4,1826.2,1.09496]
[1746396604101,1.36845046,1826.4,1826.1,1.594]
[1746396604102,1.6222,1826.5,1826.4,1.09488]
[1746396604418,4.30257,1826.6,1826.4,1.94218]
[1746396604619,4.30257,1826.6,1826.5,1.5722]
[1746396604814,3.2078,1826.6,1826.5,2.66702]
[1746396605014,1.89576046,1826.7,1826.5,1.5722]
[1746396605216,2.99050046,1826.7,1826.6,1.5722]
[1746396605718,3.89318574,1826.8,1826.7,1.0947]
[1746396606018,3.61962528,1826.8,1826.7,1.0947]
[1746396606616,3.61962528,1826.8,1826.7,7.6671]
[1746396608214,3.61962528,1826.8,1826.7,2.6671]
[1746396609823,1.86546046,1827.1,1827.0,1.09452]
[1746396610322,1.86546046,1827.1,1826.9,4.94854]
[1746396610619,1.86546046,1827.1,1827.0,1.09452]
[1746396611222,1.86546046,1827.1,1827.0,2.66422]
[1746396611609,1.86546046,1827.1,1827.0,1.5697]
[1746396611921,1.86546046,1827.1,1827.0,2.66422]
[1746396612321,2.95992046,1827.1,1826.9,3.854]
[1746396612520,1.09452,1827.0,1826.8,0.8434]
[1746396612824,1.36814046,1826.9,1826.7,4.94868]
[1746396613009,0.27356046,1826.9,1826.7,6.65648]
[1746396613215,1.6451,1826.8,1826.7,6.65648]
[1746396613517,3.01330046,1826.8,1826.7,1.7078]
[1746396613717,1.0947,1826.7,1826.6,3.2078]
[1746396613919,3.01336046,1826.7,1826.6,3.2078]
[1746396614220,1.36840046,1826.5,1826.3,4.9489]
[1746396614426,1.91866046,1826.4,1826.2,10.71997]
[1746396614616,1.36856046,1826.2,1825.9,14.28437802]
[1746396614822,1.36856046,1826.2,1825.9,20.94131802]
[1746396615021,1.36856046,1826.2,1825.9,19.84617802]
[1746396615322,1.36856046,1826.2,1825.9,14.28437802]
[1746396615720,3.06016046,1826.2,1825.9,14.28437802]
[1746396616325,1.09509,1826.1,1825.8,9.88382]
[1746396616520,1.6916,1826.0,1825.8,9.88382]
[1746396617025,1.6916,1826.0,1825.8,8.7886]
[1746396617321,1.6916,1826.0,1825.8,9.8838]
[1746396617516,1.6916,1826.0,1825.8,6.02982]
[1746396617722,0.27356046,1825.9,1825.8,4.9346]
[1746396617922,0.27356046,1825.9,1825.8,1.7268]
[1746396618127,1.59,1825.9,1825.8,2.82204]
[1746396618321,0.27356046,1826.0,1825.9,1.09518]
[1746396618516,0.27356046,1826.1,1826.0,1.09512]
[1746396619223,0.27356046,1826.1,1825.9,1.6764]
[1746396619224,1.59,1826.2,1826.1,1.09506]
[1746396619532,1.59,1826.2,1826.0,1.09509]
[1746396619824,1.59,1826.2,1826.1,1.6764]
[1746396620015,3.2078,1826.3,1826.1,5.5314]
[1746396620325,1.095,1826.2,1826.1,8.7392]
[1746396620520,1.36856046,1826.2,1826.1,5.5314]
[1746396620719,1.09511,1826.1,1826.0,3.855]
[1746396620925,1.09511,1826.1,1825.9,3.2078]
[1746396621130,1.0952,1825.9,1825.7,3.4183757]
[1746396621427,1.0952,1825.9,1825.7,6.2173757]
[1746396621628,1.0952,1825.9,1825.8,1.7037]
[1746396622024,2.72236,1826.0,1825.8,2.79894]
[1746396622226,2.68028,1826.1,1825.8,1.7037]
[1746396622527,0.27356046,1826.2,1825.9,1.7037]
[1746396622832,0.27356046,1826.2,1825.9,2.79884]
[1746396623022,1.09507,1826.1,1825.9,2.79884]
[1746396623223,1.09507,1826.1,1826.0,1.7037]
[1746396625530,1.90076046,1826.2,1826.0,1.7037]
[1746396625829,1.09506,1826.1,1826.0,1.7037]
[1746396626230,1.90076046,1826.2,1826.0,1.7037]
[1746396626530,1.09515,1826.0,1825.7,4.5136357]
[1746396626829,1.6053,1825.9,1825.8,2.75324]
[1746396627430,1.09507,1826.1,1825.9,1.09516]
[1746396627622,0.27356046,1826.0,1825.9,2.74626]
[1746396627829,0.27356046,1826.2,1825.9,8.7139]
[1746396628026,0.27356046,1826.2,1826.1,1.09506]
[1746396628224,7.5036,1826.4,1826.0,2.4921]
[1746396628429,8.59849,1826.4,1826.2,1.09496]
[1746396628731,3.04805046,1826.4,1826.3,1.6511]
[1746396628927,3.2078,1826.5,1826.4,1.09488]
[1746396629122,1.09488,1826.4,1826.3,2.746]
[1746396629322,0.27356046,1826.4,1826.0,4.696]
[1746396629519,0.27356046,1826.1,1825.9,4.30294]
[1746396629828,1.36880046,1825.8,1825.7,0.2105757]
[1746396630527,3.02630046,1825.8,1825.7,0.2105757]
[1746396633218,1.93106046,1825.8,1825.7,0.2105757]
[1746396633427,1.93106046,1825.8,1825.7,1.3058757]
[1746396634423,1.93106046,1825.8,1825.7,0.2105757]
[1746396634835,1.93106046,1825.8,1825.7,1.3058757]
[1746396635629,1.93106046,1825.8,1825.7,0.2105757]
[1746396635830,1.93106046,1825.8,1825.7,1.3058757]
[1746396636022,1.93106046,1825.8,1825.7,0.2105757]
[1746396636631,3.02630046,1825.8,1825.7,0.2105757]
[1746396636827,1.93106046,1825.8,1825.7,0.2105757]
[1746396637332,3.02630046,1825.8,1825.7,0.2105757]
[1746396637632,1.93106046,1825.8,1825.7,1.3058757]
[1746396637833,3.02630046,1825.8,1825.7,0.2105757]
[1746396638035,1.6575,1825.8,1825.7,1.3058757]
[1746396638233,9.0318,1826.1,1826.0,1.09512]
[1746396638435,10.12689,1826.1,1825.9,1.09517]
[1746396638629,11.85169,1826.1,1825.9,1.09517]
[1746396638931,8.64389,1826.1,1825.9,1.09517]
[1746396639129,1.09512,1826.0,1825.9,1.6431]
[1746396639327,1.09518,1825.9,1825.8,3.856]
[1746396639528,1.09524,1825.8,1825.7,0.2105757]
[1746396639841,2.74564,1825.8,1825.7,0.2105757]
[1746396640330,3.01920046,1825.8,1825.7,0.2105757]
[1746396640531,2.74564,1825.8,1825.7,0.2105757]
[1746396640732,3.43870228,1825.8,1825.7,0.2105757]
[1746396640926,2.06990182,1825.8,1825.7,0.2105757]
[1746396641234,3.16514182,1825.8,1825.7,0.2105757]
[1746396642030,2.06990182,1825.8,1825.7,0.2105757]
[1746396642236,2.06990182,1825.8,1825.7,3.0346757]
[1746396642536,2.06990182,1825.8,1825.7,1.9393757]
[1746396642738,0.69306228,1825.8,1825.7,3.0346757]
[1746396643136,1.51474182,1825.8,1825.7,1.9393757]
[1746396643536,1.78830228,1825.8,1825.7,0.2105757]
[1746396643736,3.06890046,1825.8,1825.7,0.2105757]
[1746396643937,0.27356046,1825.8,1825.7,0.2105757]
[1746396644139,0.27356046,1825.8,1825.7,2.8707757]
[1746396644331,0.27356046,1825.8,1825.7,1.7754757]
[1746396644639,1.36880046,1825.8,1825.7,1.7754757]
[1746396644840,3.09710046,1825.8,1825.7,1.7754757]
[1746396645136,3.09710046,1825.8,1825.7,0.2105757]
[1746396645639,3.09710046,1825.8,1825.7,1.3058757]
[1746396645640,2.00186046,1825.8,1825.7,1.3058757]
[1746396646441,4.061,1826.0,1825.7,0.2105757]
[1746396646738,5.95846046,1826.0,1825.7,1.8692757]
[1746396646937,1.6239,1825.9,1825.7,1.8692757]
[1746396647238,2.7191,1825.9,1825.8,1.09521]
[1746396647441,2.99266046,1825.9,1825.8,1.09521]
[1746396647632,2.99266046,1825.9,1825.7,2.9645257]
[1746396647827,1.6239,1825.8,1825.7,2.9645257]
[1746396648245,4.33456046,1826.0,1825.9,1.09518]
[1746396648442,6.05696046,1826.0,1825.9,1.09518]
[1746396648627,1.09518,1825.9,1825.8,1.6129]
[1746396648832,1.36874046,1825.9,1825.8,1.6129]
[1746396649032,7.19258046,1826.2,1826.0,1.09506]
[1746396649240,8.91498046,1826.2,1825.9,0.7873]
[1746396649441,8.91498046,1826.2,1826.0,1.09509]
[1746396649633,1.7224,1826.1,1826.0,1.09509]
[1746396649832,1.7224,1826.1,1826.0,2.70799]
[1746396650735,2.81746,1826.1,1826.0,2.70802]
[1746396650931,1.36868046,1826.0,1825.8,8.129]
[1746396651141,1.7224,1826.0,1825.8,4.9212]
[1746396651346,2.81757,1826.0,1825.8,4.9212]
[1746396651641,1.6846,1825.9,1825.8,4.9212]
[1746396652141,1.6846,1825.9,1825.8,3.826]
[1746396652339,1.6846,1825.9,1825.8,1.09524]
[1746396652734,1.09524,1825.8,1825.7,1.3058357]
[1746396652939,3.05339046,1825.9,1825.8,1.09524]
[1746396653132,1.95816046,1825.9,1825.8,1.09524]
[1746396654143,0.27356046,1825.9,1825.8,4.30304]
[1746396655041,1.92116046,1826.0,1825.8,4.30304]
[1746396655244,1.36874046,1825.9,1825.8,3.2078]
[1746396655546,1.09524,1825.8,1825.7,0.2105757]
[1746396655846,1.6476,1825.8,1825.7,1.3058757]
[1746396656645,3.01640046,1825.8,1825.7,0.2105757]
[1746396657038,1.6476,1825.8,1825.7,0.2105757]
[1746396657240,1.6476,1825.8,1825.7,1.3058757]
[1746396657434,2.06854757,1825.8,1825.7,1.3058757]
[1746396658547,2.74284,1825.8,1825.7,0.2105757]
[1746396659139,3.01640046,1825.8,1825.7,1.3058757]
[1746396659447,1.6476,1825.8,1825.7,1.3058757]
[1746396659647,2.06890422,1825.8,1825.7,1.3058757]
[1746396659842,0.69486468,1825.8,1825.7,1.3058757]
[1746396660047,0.69486468,1825.8,1825.7,4.5136757]
[1746396660236,0.42130422,1825.8,1825.7,4.5136757]
[1746396660439,0.42130422,1825.8,1825.7,10.3393757]
[1746396660841,1.36877046,1825.9,1825.7,4.5136757]
[1746396661147,2.00126046,1825.9,1825.8,1.09524]
[1746396661543,3.09644046,1825.9,1825.7,4.5136357]
[1746396661745,0.42132783,1825.8,1825.7,4.5136357]
[1746396661946,2.14902783,1825.8,1825.7,4.5136357]
[1746396662542,2.42258829,1825.8,1825.7,4.5136357]
[1746396663047,3.24426783,1825.8,1825.7,4.5136357]
[1746396663248,2.14902783,1825.8,1825.7,1.3058357]
[1746396663751,0.27356046,1825.9,1825.8,1.09524]
[1746396664350,0.69506823,1825.9,1825.8,1.09524]
[1746396666450,3.37624823,1825.9,1825.8,1.09524]
[1746396667047,2.28106823,1825.9,1825.7,1.09527]
[1746396667250,1.7315,1825.8,1825.7,1.09527]
[1746396667551,2.15300777,1825.8,1825.7,1.09527]
[1746396667852,0.42150777,1825.8,1825.7,4.30307]
[1746396668239,0.42150777,1825.8,1825.7,9.30307]
[1746396668446,5.22582528,1826.2,1826.1,1.09506]
[1746396668646,3.61962528,1826.2,1826.1,1.09506]
[1746396669353,3.61962528,1826.2,1826.1,1.94906]
[1746396669554,3.61962528,1826.2,1826.1,6.94906]
[1746396670252,3.61962528,1826.2,1826.1,8.67226]
[1746396670453,3.61962528,1826.2,1826.1,3.67226]
[1746396670654,3.61962528,1826.2,1826.1,2.81826]
[1746396670854,5.30782528,1826.2,1826.1,2.81826]
[1746396671754,3.61962528,1826.2,1826.1,2.81826]
[1746396673553,2.79376046,1826.3,1826.2,1.095]
[1746396676348,0.27356046,1826.2,1825.8,3.21408946]
[1746396676657,0.27356046,1826.0,1825.8,3.21408946]
[1746396676859,0.27356046,1826.0,1825.9,2.76474]
[1746396677057,1.95256046,1826.0,1825.9,2.76474]
[1746396677954,3.04768046,1826.0,1825.8,4.30928946]
[1746396678163,3.04768046,1826.0,1825.8,1.10148946]
[1746396678457,1.95256046,1825.9,1825.8,1.10148946]
[1746396678653,1.95256046,1825.9,1825.8,2.77108946]
[1746396678856,1.95256046,1825.9,1825.8,2.77112946]
[1746396681461,1.95256046,1825.9,1825.8,1.67588946]
[1746396681760,3.04774046,1825.9,1825.8,0.00628946]
[1746396682862,1.95256046,1825.9,1825.8,1.10152946]
[1746396683058,0.27356046,1826.0,1825.9,1.09518]
[1746396683565,0.27356046,1826.1,1826.0,1.09512]
[1746396683863,0.27356046,1826.1,1826.0,8.10392]
[1746396684464,7.4195,1826.2,1826.1,1.09506]
[1746396684760,4.72518574,1826.3,1826.2,1.095]
[1746396684965,3.61962528,1826.3,1826.2,1.095]
[1746396685459,2.68756046,1826.4,1826.3,1.09494]
[1746396686062,2.414,1826.4,1826.3,1.09494]
[1746396686257,3.89318574,1826.5,1826.4,1.09488]
[1746396686462,3.61962528,1826.5,1826.4,13.10368]
[1746396687062,3.61962528,1826.5,1826.4,8.10368]
[1746396687257,3.61962528,1826.5,1826.4,9.79988]
[1746396687458,3.61962528,1826.5,1826.4,14.79988]
[1746396688256,2.50675528,1826.5,1826.4,14.79988]
[1746396688457,0.99171528,1826.5,1826.4,20.69788]
[1746396688760,7.20753807,1826.7,1826.6,1.09476]
[1746396688958,7.20753807,1826.7,1826.6,4.30256]
[1746396689358,7.20753807,1826.7,1826.6,5.90986]
[1746396689563,0.27356046,1827.0,1826.9,1.09458]
[1746396689764,0.27356046,1827.0,1826.9,4.89458]
[1746396690266,0.27356046,1827.0,1826.9,6.50188]
[1746396690463,7.13044114,1827.2,1827.1,1.09446]
[1746396691154,7.13044114,1827.2,1827.1,2.66766]
[1746396691968,7.13044114,1827.2,1827.1,1.5732]
[1746396692165,8.22484114,1827.2,1827.0,4.30228]
[1746396692366,1.7003,1827.1,1827.0,5.87548]
[1746396692863,1.97386046,1827.1,1827.0,5.87548]
[1746396695668,1.97386046,1827.1,1827.0,4.781]
[1746396695965,1.97386046,1827.1,1827.0,5.87552]
[1746396696668,1.97386046,1827.1,1827.0,4.781]
[1746396696861,1.97386046,1827.1,1827.0,5.87552]
[1746396697063,1.97386046,1827.1,1827.0,4.781]
[1746396697365,1.97386046,1827.1,1827.0,3.2078]
[1746396697667,3.06832046,1827.1,1827.0,3.2078]
[1746396698064,1.97386046,1827.1,1827.0,3.2078]
[1746396698267,1.97386046,1827.1,1827.0,4.30232]
[1746396698461,0.27356046,1827.1,1827.0,4.30232]
[1746396698767,1.89696046,1827.2,1827.1,1.09446]
[1746396698970,2.99136046,1827.2,1827.1,1.6937]
[1746396699158,2.99136046,1827.2,1827.0,5.12698]
[1746396699361,1.94696046,1827.1,1827.0,4.0325]
[1746396699568,3.04142046,1827.1,1827.0,3.2078]
[1746396699970,1.94696046,1827.1,1827.0,4.30232]
[1746396700469,1.94696046,1827.1,1827.0,1.09452]
[1746396700872,1.94696046,1827.1,1827.0,2.71202]
[1746396701163,1.6734,1827.1,1827.0,2.71202]
[1746396701367,1.94696046,1827.1,1827.0,2.71202]
[1746396701671,1.94696046,1827.1,1827.0,1.6175]
[1746396701862,3.04144046,1827.1,1826.9,4.89454]
[1746396702057,3.04144046,1827.1,1826.9,4.89457]
[1746396702262,1.89916046,1827.0,1826.9,4.89457]
[1746396702563,2.99368046,1827.0,1826.9,3.8]
[1746396703072,2.99368046,1827.0,1826.8,4.8253]
[1746396703073,1.36814046,1826.9,1826.8,6.9638]
[1746396703260,2.98304046,1826.9,1826.8,6.9638]
[1746396703662,1.88846046,1826.9,1826.8,6.9638]
[1746396703865,1.88846046,1826.9,1826.8,3.2078]
[1746396704258,1.88846046,1826.9,1826.8,4.30244]
[1746396704461,0.27356046,1827.0,1826.9,1.09458]
[1746396704657,0.27356046,1827.0,1826.9,1.92678]
[1746396704868,1.6149,1827.1,1827.0,1.09452]
[1746396705167,0.8385,1827.2,1827.1,1.09446]
[1746396705367,0.8385,1827.2,1827.1,2.77626]
[1746396706864,1.36802046,1827.1,1826.9,1.92674]
[1746396707067,2.71796046,1827.1,1826.9,3.756]
[1746396707268,1.09452,1827.0,1826.9,3.756]
[1746396707570,1.36814046,1826.9,1826.8,3.2078]
[1746396710673,1.36822046,1826.8,1826.6,4.84971]
[1746396710873,1.0947,1826.7,1826.6,3.755]
[1746396711071,1.9114,1826.7,1826.6,3.755]
[1746396711279,0.8554,1826.8,1826.7,1.0947]
[1746396711470,2.77846046,1827.0,1826.9,1.09458]
[1746396711770,4.72838046,1827.0,1826.8,1.0946]
[1746396711970,1.96176046,1826.9,1826.8,1.0946]
[1746396712376,1.09464,1826.8,1826.6,8.05752]
[1746396712570,1.7139,1826.7,1826.6,4.84972]
[1746396713469,1.7139,1826.7,1826.6,8.05752]
[1746396715680,2.8086,1826.7,1826.6,6.9628]
[1746396715979,1.7139,1826.7,1826.6,8.05756]
[1746396716280,3.08216046,1826.7,1826.6,8.05756]
[1746396716478,2.8086,1826.7,1826.6,6.9628]
[1746396716776,1.98746046,1826.7,1826.6,8.05756]
[1746396716970,1.7139,1826.7,1826.6,8.05756]
[1746396717779,2.8086,1826.7,1826.6,8.05756]
[1746396718078,2.8086,1826.7,1826.6,6.9628]
[1746396718267,3.08216046,1826.7,1826.6,6.9628]
[1746396718581,3.08216046,1826.7,1826.6,3.2078]
[1746396718777,1.36838046,1826.5,1826.4,3.756]
[1746396718979,4.68655046,1826.6,1826.4,3.756]
[1746396719177,1.6317,1826.5,1826.4,6.52434]
[1746396719370,3.00008046,1826.5,1826.4,6.52434]
[1746396719574,2.72652,1826.5,1826.4,5.4295]
[1746396719780,1.6317,1826.5,1826.4,6.52438]
[1746396719979,1.90526046,1826.5,1826.4,6.52438]
[1746396720687,1.90526046,1826.5,1826.4,2.76838]
[1746396720881,1.90526046,1826.5,1826.4,1.6735]
[1746396721082,0.27356046,1826.5,1826.4,5.97618]
[1746396721872,0.8395,1826.6,1826.5,1.09482]
[1746396722183,1.11596046,1826.9,1826.8,1.09464]
[1746396722777,2.00846046,1827.0,1826.9,1.09458]
[1746396723381,1.7349,1827.0,1826.9,1.09458]
[1746396724186,3.10298046,1827.0,1826.9,1.09458]
[1746396724883,3.10298046,1827.0,1826.8,2.805]
[1746396725181,1.09458,1826.9,1826.8,2.805]
[1746396725385,2.82148,1826.9,1826.8,1.7104]
[1746396725578,3.09504046,1826.9,1826.8,1.7104]
[1746396726680,0.27356046,1826.5,1826.3,4.30273]
[1746396726873,1.095,1826.2,1826.1,7.28349598]
[1746396727182,4.57636046,1826.2,1826.1,7.28349598]
[1746396727377,9.57636046,1826.2,1826.1,7.28349598]
[1746396728194,4.57636046,1826.2,1826.1,7.28349598]
[1746396728377,9.57636046,1826.2,1826.1,7.28349598]
[1746396729077,11.17306046,1826.2,1826.1,7.28349598]
[1746396729777,11.17306046,1826.2,1825.8,18.11781582]
[1746396729778,1.09518,1825.9,1825.8,0.00628946]
[1746396730886,2.76228,1825.9,1825.8,0.00628946]
[1746396731381,3.03584046,1825.9,1825.8,0.00628946]
[1746396731590,3.88594046,1825.9,1825.8,0.00628946]
[1746396732588,3.61238,1825.9,1825.8,0.00628946]
[1746396732889,3.88594046,1825.9,1825.8,0.00628946]
[1746396733985,6.09756046,1826.1,1825.8,3.21408946]
[1746396734288,1.09518,1825.9,1825.8,0.00628946]
[1746396734682,3.79324046,1825.9,1825.8,0.00628946]
[1746396734882,4.65464046,1825.9,1825.8,0.00628946]
[1746396735699,2.4245,1825.9,1825.8,0.00628946]
[1746396735885,7.3933,1826.1,1826.0,1.09512]
[1746396736082,6.91906,1826.1,1825.9,2.68774]
[1746396736286,5.824,1826.1,1826.0,2.68772]
[1746396736487,1.0949,1826.4,1826.2,1.095]
[1746396736788,0.27356046,1826.5,1826.3,1.6308]
[1746396736991,1.09488,1826.4,1826.3,1.6308]
[1746396737994,3.05952046,1826.5,1826.3,2.72573]
[1746396738391,3.05952046,1826.5,1826.4,1.6308]
[1746396739295,1.96466046,1826.5,1826.1,0.8445]
[1746396739596,1.095,1826.2,1826.1,2.4753]
[1746396740094,0.27356046,1826.3,1826.1,3.57035]
[1746396740293,0.27356046,1826.3,1826.2,2.7828]
[1746396740489,0.27356046,1826.4,1826.2,1.6878]
[1746396740694,0.27356046,1826.4,1826.3,1.09494]
[1746396740897,0.27356046,1826.4,1826.2,4.8956]
[1746396741195,1.36846046,1826.4,1826.2,2.7828]
[1746396741795,1.09494,1826.3,1826.2,1.6878]
[1746396742396,1.6144,1826.3,1826.2,1.6878]
[1746396742693,0.27356046,1827.0,1826.3,2.73736]
[1746396742998,2.81578,1826.9,1826.6,1.09472]
[1746396743201,2.81578,1826.9,1826.7,1.6069]
[1746396743395,1.36820046,1826.8,1826.6,4.85076]
[1746396743697,1.7212,1826.7,1826.6,4.85076]
[1746396744397,1.36818046,1826.9,1826.7,1.09469]
[1746396744594,1.36818046,1826.9,1826.7,1.6069]
[1746396744794,1.99476046,1826.8,1826.7,1.6069]
[1746396744996,1.7212,1826.8,1826.7,2.7016]
[1746396745602,3.08940046,1826.8,1826.7,1.6069]
[1746396745796,1.99476046,1826.8,1826.7,2.7016]
[1746396746002,3.08940046,1826.8,1826.7,1.6069]
[1746396746402,1.0947,1826.7,1826.6,4.6191]
[1746396746599,1.09476,1826.6,1826.4,2.66464]
[1746396747000,1.6562,1826.5,1826.4,2.66464]
[1746396747305,0.8298,1826.7,1826.4,1.5698]
[1746396747503,0.8298,1826.7,1826.5,1.09479]
[1746396747699,9.30536046,1826.9,1826.8,1.09464]
[1746396747899,0.27356046,1826.9,1826.8,1.09464]
[1746396748106,3.48136046,1827.3,1827.0,1.09447]
[1746396748306,1.36796046,1827.2,1827.1,1.5698]
[1746396748505,1.92976046,1827.2,1827.1,1.5698]
[1746396749005,7.5051,1827.5,1827.2,1.0944]
[1746396749006,3.48136046,1827.4,1827.2,1.0944]
[1746396749205,4.57564046,1827.4,1827.3,1.6178]
[1746396749401,6.25374046,1827.4,1827.3,1.6178]
[1746396749611,5.98018,1827.4,1827.2,0.783]
[1746396749907,1.36798046,1827.2,1827.0,1.6178]
[1746396750107,1.6781,1827.1,1827.0,1.6178]
[1746396750501,2.77256,1827.1,1826.8,8.05741]
[1746396750803,4.43876,1827.1,1826.8,9.67521]
[1746396751003,1.6781,1827.0,1826.8,9.67521]
[1746396751204,1.6781,1827.0,1826.8,6.46741]
[1746396751403,1.6781,1827.0,1826.9,1.09458]
[1746396751603,1.6781,1827.0,1826.9,1.6178]
[1746396751805,2.77262,1827.0,1826.9,1.6178]
[1746396752513,3.04618046,1827.0,1826.9,1.6178]
[1746396753011,1.09461,1826.9,1826.7,5.63267]
[1746396753309,1.09467,1826.8,1826.6,4.30254]
[1746396753508,1.36823046,1826.8,1826.7,1.5981]
[1746396753710,1.0947,1826.7,1826.6,3.2078]
[1746396753909,1.09468,1826.8,1826.6,4.8059]
[1746396754107,2.7184,1826.7,1826.6,4.8059]
[1746396754310,2.99196046,1826.7,1826.6,3.2078]
[1746396755612,1.09476,1826.6,1826.5,1.5768]
[1746396755810,2.77216,1826.6,1826.5,1.5768]
[1746396756107,1.6774,1826.6,1826.5,1.5768]
[1746396756308,1.07066046,1826.7,1826.5,2.67162]
[1746396756507,2.16538046,1826.7,1826.5,2.67162]
[1746396756713,1.07066046,1826.7,1826.6,1.5768]
[1746396757410,2.16536046,1826.7,1826.6,1.5768]
[1746396758519,2.16536046,1826.7,1826.4,1.638]
[1746396758520,1.09482,1826.5,1826.4,1.638]
[1746396759011,2.95537046,1826.6,1826.4,2.73287]
[1746396759214,1.36838046,1826.5,1826.4,1.638]
[1746396759510,1.86056046,1826.5,1826.4,2.73288]
[1746396759706,2.95538046,1826.5,1826.4,1.638]
[1746396759908,1.86056046,1826.5,1826.4,1.638]
[1746396760112,1.86056046,1826.5,1826.4,2.73288]
[1746396761115,1.87506046,1826.7,1826.5,1.09477]
[1746396761315,1.09476,1826.6,1826.5,1.5668]
[1746396761613,4.64910046,1826.7,1826.5,1.5668]
[1746396762319,1.36832046,1826.6,1826.5,1.5668]
[1746396762612,1.36840046,1826.5,1826.3,5.67882]
[1746396762811,1.36840046,1826.5,1826.3,7.24562]
[1746396763016,3.04765046,1826.6,1826.3,7.24562]
[1746396763218,1.09484,1826.5,1826.3,4.5839]
[1746396763414,2.77414,1826.5,1826.3,6.1507]
[1746396764119,2.77414,1826.5,1826.3,7.24563]
[1746396764311,2.77414,1826.5,1826.4,1.6854]
[1746396764511,3.04770046,1826.5,1826.4,1.6854]
[1746396764715,3.04771046,1826.5,1826.2,3.2078]
[1746396764913,1.7119,1826.4,1826.3,2.7803]
[1746396765116,1.7119,1826.4,1826.3,1.0949]
[1746396765315,1.7119,1826.4,1826.2,4.30276]
[1746396765724,1.7119,1826.4,1826.3,1.09494]
[1746396765924,0.27356046,1826.5,1826.4,1.09488]
[1746396766217,0.27356046,1826.5,1826.2,3.2078]
[1746396766422,0.27356046,1826.5,1826.3,1.0949]
[1746396767021,0.27356046,1826.5,1826.2,3.2078]
[1746396767422,0.27356046,1826.5,1826.3,1.09494]
[1746396767817,1.36838046,1826.5,1826.3,1.09494]
[1746396768014,0.27356046,1826.5,1826.2,6.9618]
[1746396768219,1.36841046,1826.5,1826.3,1.09493]
[1746396769625,1.09488,1826.4,1826.2,8.05676]
[1746396769923,0.27356046,1826.5,1826.1,0.8355]
[1746396770220,0.27356046,1826.6,1826.4,1.09484]